[Event "Late-Titled-Tuesday-Blitz-August-29-2023"]
[Site "Chess.com"]
[Date "2023.08.29"]
[Round "10"]
[White "pedromartinez91"]
[Black "Jojo_898"]
[Result "0-1"]
[WhiteElo "2481"]
[BlackElo "2374"]
[TimeControl "180+1"]
[EndTime "15:50:47 PDT"]
[Termination "Jojo_898 won on time"]

1. e4 {[%clk 0:02:55.7]} 1... d6 {[%clk 0:02:59.9]} 2. d4 {[%clk 0:02:48.7]}
2... Nf6 {[%clk 0:03:00.5]} 3. Bd3 {[%clk 0:02:27.7]} 3... g6 {[%clk 0:03:00.3]}
4. c3 {[%clk 0:02:18.8]} 4... Bg7 {[%clk 0:02:58.3]} 5. Nf3 {[%clk 0:02:19.7]}
5... O-O {[%clk 0:02:57.2]} 6. h3 {[%clk 0:02:06]} 6... Nbd7 {[%clk 0:02:52.4]}
7. O-O {[%clk 0:02:06.9]} 7... c5 {[%clk 0:02:52.3]} 8. Re1 {[%clk 0:01:59.9]}
8... a6 {[%clk 0:02:47.4]} 9. a4 {[%clk 0:01:57.1]} 9... e5 {[%clk 0:02:45.3]}
10. d5 {[%clk 0:01:53.9]} 10... Rb8 {[%clk 0:02:37.2]} 11. a5 {[%clk 0:01:40.3]}
11... Nh5 {[%clk 0:02:31.3]} 12. Nbd2 {[%clk 0:01:39.9]} 12... Nf4 {[%clk
0:02:31.3]} 13. Bf1 {[%clk 0:01:40.1]} 13... f5 {[%clk 0:02:16.7]} 14. Nc4
{[%clk 0:01:31.5]} 14... fxe4 {[%clk 0:02:13.7]} 15. Rxe4 {[%clk 0:01:32.4]}
15... Nf6 {[%clk 0:02:13.8]} 16. Re1 {[%clk 0:01:28.1]} 16... N4xd5 {[%clk
0:02:08.8]} 17. Bg5 {[%clk 0:01:02.3]} 17... Be6 {[%clk 0:02:00.3]} 18. Bxf6
{[%clk 0:00:26.5]} 18... Bxf6 {[%clk 0:01:59.6]} 19. Nfd2 {[%clk 0:00:25.4]}
19... Be7 {[%clk 0:01:55.6]} 0-1

[Event "Late-Titled-Tuesday-Blitz-August-29-2023"]
[Site "Chess.com"]
[Date "2023.08.29"]
[Round "10"]
[White "jinbojinbo"]
[Black "Sjakkerntobi"]
[Result "1-0"]
[WhiteElo "2680"]
[BlackElo "2486"]
[TimeControl "180+1"]
[EndTime "15:50:57 PDT"]
[Termination "jinbojinbo won by checkmate"]

1. e4 {[%clk 0:03:00.9]} 1... e6 {[%clk 0:02:59.2]} 2. d4 {[%clk 0:03:00.5]}
2... d5 {[%clk 0:02:59.7]} 3. Nc3 {[%clk 0:03:01]} 3... Bb4 {[%clk 0:02:59.8]}
4. e5 {[%clk 0:03:00.4]} 4... Ne7 {[%clk 0:02:59.8]} 5. Bd2 {[%clk 0:02:56.9]}
5... b6 {[%clk 0:02:58.9]} 6. a3 {[%clk 0:02:56.1]} 6... Bxc3 {[%clk 0:02:58]}
7. Bxc3 {[%clk 0:02:57]} 7... Ba6 {[%clk 0:02:58.6]} 8. Bxa6 {[%clk 0:02:56.4]}
8... Nxa6 {[%clk 0:02:59.5]} 9. h4 {[%clk 0:02:56.5]} 9... c5 {[%clk 0:02:58.9]}
10. Nf3 {[%clk 0:02:43.1]} 10... Rc8 {[%clk 0:02:53.7]} 11. h5 {[%clk
0:02:41.7]} 11... h6 {[%clk 0:02:53.8]} 12. Qd3 {[%clk 0:02:35.2]} 12... Nb8
{[%clk 0:02:52.6]} 13. Bd2 {[%clk 0:02:32.1]} 13... Nbc6 {[%clk 0:02:51.5]} 14.
c3 {[%clk 0:02:32]} 14... Na5 {[%clk 0:02:51.5]} 15. Bf4 {[%clk 0:02:29.5]}
15... Qc7 {[%clk 0:02:44.9]} 16. O-O {[%clk 0:02:28.2]} 16... cxd4 {[%clk
0:02:37.1]} 17. Nxd4 {[%clk 0:02:28.1]} 17... Qc4 {[%clk 0:02:37.2]} 18. Qg3
{[%clk 0:02:24.9]} 18... Kf8 {[%clk 0:02:27.3]} 19. Rad1 {[%clk 0:02:18.4]}
19... Nac6 {[%clk 0:02:24.4]} 20. Qf3 {[%clk 0:02:06.1]} 20... Nxd4 {[%clk
0:02:18.3]} 21. cxd4 {[%clk 0:02:01.3]} 21... Nf5 {[%clk 0:02:09.4]} 22. Be3
{[%clk 0:01:57.9]} 22... Qb3 {[%clk 0:01:54.2]} 23. g4 {[%clk 0:01:53.1]} 23...
Ne7 {[%clk 0:01:48.9]} 24. Rc1 {[%clk 0:01:45.7]} 24... Nc6 {[%clk 0:01:42.5]}
25. Rc3 {[%clk 0:01:41.6]} 25... Qb5 {[%clk 0:01:42.6]} 26. Rfc1 {[%clk
0:01:41.3]} 26... Ke7 {[%clk 0:01:39.9]} 27. Qd1 {[%clk 0:01:33.7]} 27... Kd7
{[%clk 0:01:33.2]} 28. Qc2 {[%clk 0:01:30.6]} 28... Ne7 {[%clk 0:00:45.3]} 29.
Rc7+ {[%clk 0:01:30.2]} 29... Rxc7 {[%clk 0:00:45.3]} 30. Qxc7+ {[%clk
0:01:30.7]} 30... Ke8 {[%clk 0:00:46]} 31. Qb8+ {[%clk 0:01:30.5]} 31... Kd7
{[%clk 0:00:46.3]} 32. Rc7# {[%clk 0:01:30.4]} 1-0

[Event "Late-Titled-Tuesday-Blitz-August-29-2023"]
[Site "Chess.com"]
[Date "2023.08.29"]
[Round "10"]
[White "Grebeniuk-S"]
[Black "Eloist"]
[Result "1-0"]
[WhiteElo "2604"]
[BlackElo "2453"]
[TimeControl "180+1"]
[EndTime "15:51:00 PDT"]
[Termination "Grebeniuk-S won by resignation"]

1. d4 {[%clk 0:02:52.5]} 1... e6 {[%clk 0:03:00]} 2. Nf3 {[%clk 0:02:51]} 2...
Nf6 {[%clk 0:02:59.7]} 3. e3 {[%clk 0:02:51.3]} 3... b6 {[%clk 0:02:58.8]} 4.
Nbd2 {[%clk 0:02:50]} 4... Bb7 {[%clk 0:02:58.6]} 5. Bd3 {[%clk 0:02:50.9]} 5...
c5 {[%clk 0:02:57.4]} 6. O-O {[%clk 0:02:51.3]} 6... Nc6 {[%clk 0:02:54]} 7. a3
{[%clk 0:02:51.5]} 7... d5 {[%clk 0:02:52.8]} 8. b3 {[%clk 0:02:51.8]} 8... Bd6
{[%clk 0:02:52.1]} 9. Bb2 {[%clk 0:02:52.3]} 9... O-O {[%clk 0:02:51.8]} 10. Qe2
{[%clk 0:02:50.7]} 10... Re8 {[%clk 0:02:50.5]} 11. Ne5 {[%clk 0:02:50]} 11...
Qc7 {[%clk 0:02:48.2]} 12. f4 {[%clk 0:02:49.8]} 12... Ne7 {[%clk 0:02:45]} 13.
c4 {[%clk 0:02:40.4]} 13... Ne4 {[%clk 0:02:39.8]} 14. Rac1 {[%clk 0:02:32.8]}
14... f6 {[%clk 0:02:37.6]} 15. Nef3 {[%clk 0:02:29.2]} 15... Qd7 {[%clk
0:02:25.3]} 16. dxc5 {[%clk 0:02:20.1]} 16... bxc5 {[%clk 0:02:17]} 17. cxd5
{[%clk 0:02:09.2]} 17... exd5 {[%clk 0:02:15.9]} 18. Bb5 {[%clk 0:02:09.6]}
18... Bc6 {[%clk 0:02:13.4]} 19. Bxc6 {[%clk 0:02:09.6]} 19... Nxc6 {[%clk
0:02:11.1]} 20. Nxe4 {[%clk 0:02:04.1]} 20... Rxe4 {[%clk 0:02:03.2]} 21. Qd3
{[%clk 0:01:50.8]} 21... Qe6 {[%clk 0:01:59.6]} 22. Rfe1 {[%clk 0:01:40.1]}
22... Re8 {[%clk 0:01:58]} 23. Kf2 {[%clk 0:01:40.7]} 23... d4 {[%clk
0:00:30.7]} 24. exd4 {[%clk 0:01:40.1]} 24... Re2+ {[%clk 0:00:28.6]} 25. Rxe2
{[%clk 0:01:39]} 25... Qxe2+ {[%clk 0:00:24.7]} 26. Qxe2 {[%clk 0:01:39]} 26...
Rxe2+ {[%clk 0:00:24.4]} 27. Kxe2 {[%clk 0:01:39.4]} 1-0

[Event "Late-Titled-Tuesday-Blitz-August-29-2023"]
[Site "Chess.com"]
[Date "2023.08.29"]
[Round "10"]
[White "TheMagician"]
[Black "FredddieCroderg"]
[Result "1-0"]
[WhiteElo "2171"]
[BlackElo "2298"]
[TimeControl "180+1"]
[EndTime "15:51:20 PDT"]
[Termination "TheMagician won by checkmate"]

1. d4 {[%clk 0:03:00.9]} 1... g6 {[%clk 0:02:58.4]} 2. e4 {[%clk 0:02:59.8]}
2... Bg7 {[%clk 0:02:58]} 3. Nf3 {[%clk 0:02:59.7]} 3... c6 {[%clk 0:02:57.8]}
4. c3 {[%clk 0:02:51.8]} 4... d5 {[%clk 0:02:57.8]} 5. e5 {[%clk 0:02:51.7]}
5... Qb6 {[%clk 0:02:57.8]} 6. h3 {[%clk 0:02:47.8]} 6... e6 {[%clk 0:02:55.6]}
7. a4 {[%clk 0:02:45]} 7... c5 {[%clk 0:02:55.2]} 8. a5 {[%clk 0:02:44.8]} 8...
Qc7 {[%clk 0:02:55]} 9. Na3 {[%clk 0:02:43.1]} 9... a6 {[%clk 0:02:54]} 10. Nc2
{[%clk 0:02:41.7]} 10... Nc6 {[%clk 0:02:51.9]} 11. b4 {[%clk 0:02:35.7]} 11...
cxb4 {[%clk 0:02:47.6]} 12. cxb4 {[%clk 0:02:33.6]} 12... Bd7 {[%clk 0:02:47.4]}
13. Bd2 {[%clk 0:02:28.2]} 13... Nge7 {[%clk 0:02:46.4]} 14. Bd3 {[%clk
0:02:26.6]} 14... Rc8 {[%clk 0:02:44.9]} 15. O-O {[%clk 0:02:24.7]} 15... Qb8
{[%clk 0:02:40.2]} 16. Rc1 {[%clk 0:02:22]} 16... Na7 {[%clk 0:02:40]} 17. Na1
{[%clk 0:02:20.7]} 17... Bb5 {[%clk 0:02:39]} 18. Bxb5+ {[%clk 0:02:19.4]} 18...
Nxb5 {[%clk 0:02:38.5]} 19. Nb3 {[%clk 0:02:17.4]} 19... Nc6 {[%clk 0:02:37.1]}
20. Qe2 {[%clk 0:02:06.4]} 20... O-O {[%clk 0:02:34.5]} 21. Qd3 {[%clk
0:02:06.1]} 21... Rc7 {[%clk 0:02:32]} 22. Nc5 {[%clk 0:02:03.5]} 22... Rfc8
{[%clk 0:02:31.7]} 23. h4 {[%clk 0:02:02]} 23... Bf8 {[%clk 0:02:30.2]} 24. h5
{[%clk 0:02:01.4]} 24... Re8 {[%clk 0:02:26.6]} 25. g3 {[%clk 0:02:01.1]} 25...
Rcc8 {[%clk 0:02:26.4]} 26. Kg2 {[%clk 0:02:01.5]} 26... Bg7 {[%clk 0:02:26]}
27. Rh1 {[%clk 0:02:01.3]} 27... Ne7 {[%clk 0:02:25.4]} 28. hxg6 {[%clk
0:02:01]} 28... hxg6 {[%clk 0:02:21.3]} 29. g4 {[%clk 0:01:58.9]} 29... Rc7
{[%clk 0:02:03.6]} 30. Qe3 {[%clk 0:01:53.3]} 30... Kf8 {[%clk 0:02:01.1]} 31.
Rh7 {[%clk 0:01:52.7]} 31... Ng8 {[%clk 0:01:58.4]} 32. Rch1 {[%clk 0:01:51.9]}
32... Qc8 {[%clk 0:01:53.2]} 33. Qd3 {[%clk 0:01:51.3]} 33... Na7 {[%clk
0:01:48]} 34. Ng5 {[%clk 0:01:48.7]} 34... Nc6 {[%clk 0:01:44.9]} 35. Bc3 {[%clk
0:01:45.2]} 35... Ree7 {[%clk 0:01:26.6]} 36. Qf3 {[%clk 0:01:43.3]} 36... Nd8
{[%clk 0:01:16.2]} 37. Bd2 {[%clk 0:01:33.8]} 37... Re8 {[%clk 0:01:10.7]} 38.
Qh3 {[%clk 0:01:29.7]} 38... Ree7 {[%clk 0:01:01.4]} 39. Rxg7 {[%clk 0:01:29.7]}
39... Kxg7 {[%clk 0:01:01.6]} 40. Qh8+ {[%clk 0:01:29.6]} 40... Kf8 {[%clk
0:01:00.8]} 41. Nh7+ {[%clk 0:01:28.8]} 41... Ke8 {[%clk 0:00:59.9]} 42. Nf6+
{[%clk 0:01:28.5]} 42... Kf8 {[%clk 0:00:57]} 43. Qxg8# {[%clk 0:01:27.4]} 1-0

[Event "Late-Titled-Tuesday-Blitz-August-29-2023"]
[Site "Chess.com"]
[Date "2023.08.29"]
[Round "10"]
[White "dropstoneDP"]
[Black "Bauman_Guy"]
[Result "1-0"]
[WhiteElo "2981"]
[BlackElo "2860"]
[TimeControl "180+1"]
[EndTime "15:51:31 PDT"]
[Termination "dropstoneDP won by checkmate"]

1. c4 {[%clk 0:03:00.9]} 1... e5 {[%clk 0:02:58.9]} 2. g3 {[%clk 0:03:00.6]}
2... Nf6 {[%clk 0:02:58.6]} 3. Bg2 {[%clk 0:03:01.3]} 3... d5 {[%clk 0:02:59.3]}
4. cxd5 {[%clk 0:03:01.9]} 4... Nxd5 {[%clk 0:03:00.2]} 5. Nc3 {[%clk
0:03:02.2]} 5... Nb6 {[%clk 0:03:00.2]} 6. Nf3 {[%clk 0:03:01.7]} 6... Nc6
{[%clk 0:03:00.3]} 7. O-O {[%clk 0:03:02.4]} 7... Be7 {[%clk 0:03:00.5]} 8. b3
{[%clk 0:03:02]} 8... O-O {[%clk 0:02:59.4]} 9. Bb2 {[%clk 0:03:02.6]} 9... Re8
{[%clk 0:02:58.1]} 10. Rc1 {[%clk 0:03:03.1]} 10... Bf8 {[%clk 0:02:56.9]} 11.
Ne4 {[%clk 0:03:01]} 11... Nd4 {[%clk 0:02:55.8]} 12. e3 {[%clk 0:03:00.2]}
12... Nxf3+ {[%clk 0:02:55.5]} 13. Qxf3 {[%clk 0:02:59.9]} 13... c6 {[%clk
0:02:56.1]} 14. d4 {[%clk 0:02:59.7]} 14... exd4 {[%clk 0:02:51]} 15. Bxd4
{[%clk 0:02:59.5]} 15... Be6 {[%clk 0:02:50.9]} 16. Rfd1 {[%clk 0:02:52.7]}
16... Bd5 {[%clk 0:02:48.7]} 17. Qg4 {[%clk 0:02:46.5]} 17... Re6 {[%clk
0:02:21.3]} 18. h4 {[%clk 0:02:36.7]} 18... Rg6 {[%clk 0:01:42.6]} 19. Qh5
{[%clk 0:02:30.9]} 19... Qe8 {[%clk 0:01:34.6]} 20. Ng5 {[%clk 0:02:18.3]} 20...
h6 {[%clk 0:01:32.4]} 21. e4 {[%clk 0:02:17.6]} 21... hxg5 {[%clk 0:00:56.5]}
22. exd5 {[%clk 0:02:17.3]} 22... gxh4 {[%clk 0:00:56.9]} 23. dxc6 {[%clk
0:02:16.2]} 23... hxg3 {[%clk 0:00:56.9]} 24. cxb7 {[%clk 0:02:15.1]} 24...
gxf2+ {[%clk 0:00:56.3]} 25. Kf1 {[%clk 0:02:12.4]} 25... Rb8 {[%clk 0:00:43.4]}
26. Rc3 {[%clk 0:01:56.1]} 26... Rxg2 {[%clk 0:00:20.2]} 27. Kxg2 {[%clk
0:01:57]} 27... Qe1 {[%clk 0:00:20.2]} 28. Qh1 {[%clk 0:01:39.9]} 28... Qe2
{[%clk 0:00:06.1]} 29. Bxf2 {[%clk 0:01:36.3]} 29... Rxb7 {[%clk 0:00:06.3]} 30.
Rh3 {[%clk 0:01:35.6]} 30... Qe5 {[%clk 0:00:04]} 31. Rh8# {[%clk 0:01:35.2]}
1-0

[Event "Late-Titled-Tuesday-Blitz-August-29-2023"]
[Site "Chess.com"]
[Date "2023.08.29"]
[Round "10"]
[White "Nf3c5"]
[Black "Road2GM3000"]
[Result "1-0"]
[WhiteElo "2610"]
[BlackElo "2506"]
[TimeControl "180+1"]
[EndTime "15:51:34 PDT"]
[Termination "Nf3c5 won by resignation"]

1. e4 {[%clk 0:02:55.3]} 1... c5 {[%clk 0:02:57.5]} 2. Nf3 {[%clk 0:02:53.2]}
2... d6 {[%clk 0:02:57.2]} 3. Nc3 {[%clk 0:02:52.1]} 3... Nf6 {[%clk 0:02:57.4]}
4. e5 {[%clk 0:02:52.2]} 4... dxe5 {[%clk 0:02:57]} 5. Nxe5 {[%clk 0:02:53.1]}
5... e6 {[%clk 0:02:57]} 6. Qe2 {[%clk 0:02:36.4]} 6... Bd6 {[%clk 0:02:56.1]}
7. g3 {[%clk 0:02:32.9]} 7... O-O {[%clk 0:02:54.2]} 8. Bg2 {[%clk 0:02:32.7]}
8... Nbd7 {[%clk 0:02:52.7]} 9. Nc4 {[%clk 0:02:27.9]} 9... Bc7 {[%clk
0:02:51.5]} 10. O-O {[%clk 0:02:26.9]} 10... Nb6 {[%clk 0:02:48.2]} 11. b3
{[%clk 0:02:12.5]} 11... Nxc4 {[%clk 0:02:45.6]} 12. bxc4 {[%clk 0:02:13.4]}
12... Rb8 {[%clk 0:02:44.7]} 13. Rb1 {[%clk 0:02:12.8]} 13... b6 {[%clk
0:02:45.1]} 14. d3 {[%clk 0:02:06.2]} 14... Bb7 {[%clk 0:02:44.8]} 15. Bxb7
{[%clk 0:02:04.7]} 15... Rxb7 {[%clk 0:02:45.7]} 16. Bg5 {[%clk 0:02:04.3]}
16... h6 {[%clk 0:02:44.5]} 17. Bxf6 {[%clk 0:02:02.5]} 17... Qxf6 {[%clk
0:02:45.4]} 18. Ne4 {[%clk 0:02:02.1]} 18... Qe7 {[%clk 0:02:43]} 19. a4 {[%clk
0:02:00.7]} 19... Rbb8 {[%clk 0:02:41.2]} 20. f4 {[%clk 0:01:56.8]} 20... Qd7
{[%clk 0:02:35.7]} 21. Kg2 {[%clk 0:01:55]} 21... Bd8 {[%clk 0:02:35.8]} 22. a5
{[%clk 0:01:37.2]} 22... Bf6 {[%clk 0:02:32.3]} 23. axb6 {[%clk 0:01:35.5]}
23... axb6 {[%clk 0:02:25.3]} 24. Rb5 {[%clk 0:01:34.6]} 24... Qc6 {[%clk
0:02:17.2]} 25. Qf3 {[%clk 0:01:32.8]} 25... e5 {[%clk 0:02:08.3]} 26. f5 {[%clk
0:01:25.3]} 26... Ra8 {[%clk 0:01:59]} 27. Rfb1 {[%clk 0:01:22.7]} 27... Rfb8
{[%clk 0:01:59.3]} 28. Nxc5 {[%clk 0:01:15.5]} 28... Qxf3+ {[%clk 0:01:23.7]}
29. Kxf3 {[%clk 0:01:16.4]} 29... Ra2 {[%clk 0:01:17.8]} 30. Nd7 {[%clk
0:00:59.8]} 30... Rd8 {[%clk 0:01:13.2]} 31. Nxf6+ {[%clk 0:00:51]} 31... gxf6
{[%clk 0:01:14.1]} 32. R1b2 {[%clk 0:00:49.3]} 32... Ra1 {[%clk 0:01:12.6]} 33.
Rxb6 {[%clk 0:00:48.4]} 33... e4+ {[%clk 0:01:08]} 34. Kxe4 {[%clk 0:00:46.1]}
34... Re1+ {[%clk 0:01:08.2]} 35. Kf3 {[%clk 0:00:43.3]} 35... Rde8 {[%clk
0:01:05.4]} 36. Rb8 {[%clk 0:00:43]} 1-0

[Event "Late-Titled-Tuesday-Blitz-August-29-2023"]
[Site "Chess.com"]
[Date "2023.08.29"]
[Round "10"]
[White "Bala-Afiada"]
[Black "SergioMoralesG"]
[Result "0-1"]
[WhiteElo "1998"]
[BlackElo "2389"]
[TimeControl "180+1"]
[EndTime "15:51:36 PDT"]
[Termination "SergioMoralesG won by resignation"]

1. d4 {[%clk 0:02:54.9]} 1... d5 {[%clk 0:02:59.6]} 2. c4 {[%clk 0:02:54]} 2...
c6 {[%clk 0:02:59.8]} 3. Nf3 {[%clk 0:02:53.7]} 3... Nf6 {[%clk 0:02:59.9]} 4.
g3 {[%clk 0:02:52.7]} 4... Bf5 {[%clk 0:02:58.3]} 5. Bg2 {[%clk 0:02:51.4]} 5...
e6 {[%clk 0:02:58.5]} 6. O-O {[%clk 0:02:50.6]} 6... Nbd7 {[%clk 0:02:59]} 7.
Qb3 {[%clk 0:02:50.7]} 7... Qb6 {[%clk 0:02:57.2]} 8. c5 {[%clk 0:02:50.9]} 8...
Qa6 {[%clk 0:02:55.3]} 9. Nc3 {[%clk 0:02:47.5]} 9... h6 {[%clk 0:02:52.5]} 10.
Bf4 {[%clk 0:02:42.7]} 10... b6 {[%clk 0:02:49.6]} 11. cxb6 {[%clk 0:02:40.9]}
11... axb6 {[%clk 0:02:49.6]} 12. Ne5 {[%clk 0:02:34.4]} 12... Nxe5 {[%clk
0:02:45.8]} 13. Bxe5 {[%clk 0:02:35.3]} 13... Be7 {[%clk 0:02:45.9]} 14. Bxf6
{[%clk 0:02:31.9]} 14... Bxf6 {[%clk 0:02:45.2]} 15. e3 {[%clk 0:02:31.4]} 15...
O-O {[%clk 0:02:43.6]} 16. Rac1 {[%clk 0:02:29.1]} 16... c5 {[%clk 0:02:41.5]}
17. dxc5 {[%clk 0:02:24.6]} 17... bxc5 {[%clk 0:02:42.4]} 18. a3 {[%clk
0:02:08.7]} 18... Rfb8 {[%clk 0:02:27]} 19. Qa2 {[%clk 0:02:03.2]} 19... Bd3
{[%clk 0:02:26.8]} 20. Rfd1 {[%clk 0:01:57.7]} 20... Bc4 {[%clk 0:02:26.8]} 21.
Qa1 {[%clk 0:01:57.6]} 21... Rb3 {[%clk 0:02:22.3]} 22. Bf1 {[%clk 0:01:41.8]}
22... Bxf1 {[%clk 0:02:05.9]} 23. Rxf1 {[%clk 0:01:42.7]} 23... Bxc3 {[%clk
0:02:01.7]} 24. Rxc3 {[%clk 0:01:28.9]} 24... Rxc3 {[%clk 0:02:01.1]} 25. bxc3
{[%clk 0:01:29.5]} 25... Qxa3 {[%clk 0:02:01.4]} 26. Qxa3 {[%clk 0:01:22.5]}
26... Rxa3 {[%clk 0:02:02.3]} 27. Rc1 {[%clk 0:01:22.5]} 27... c4 {[%clk
0:01:59.7]} 28. Kg2 {[%clk 0:01:22]} 28... Kf8 {[%clk 0:01:58.4]} 29. Kf3 {[%clk
0:01:22.3]} 29... Ke7 {[%clk 0:01:58.9]} 30. Rc2 {[%clk 0:01:19.1]} 30... Kd6
{[%clk 0:01:58.1]} 31. Kf4 {[%clk 0:01:19.6]} 31... f6 {[%clk 0:01:53.8]} 32. h4
{[%clk 0:01:11.8]} 32... Kc5 {[%clk 0:01:51.7]} 33. g4 {[%clk 0:01:09.9]} 33...
Kb5 {[%clk 0:01:50.1]} 34. g5 {[%clk 0:01:09.7]} 34... hxg5+ {[%clk 0:01:46.4]}
35. hxg5 {[%clk 0:01:10.6]} 35... Ka4 {[%clk 0:01:46.6]} 36. g6 {[%clk
0:01:01.2]} 36... Kb3 {[%clk 0:01:46.4]} 37. Rc1 {[%clk 0:01:01.4]} 37... Kb2
{[%clk 0:01:46]} 38. Rh1 {[%clk 0:00:59]} 38... Kxc3 {[%clk 0:01:45.8]} 39. Rh7
{[%clk 0:00:58.6]} 39... Ra7 {[%clk 0:01:46.3]} 40. Rh8 {[%clk 0:00:54.9]} 40...
Kd2 {[%clk 0:01:45.5]} 41. Rf8 {[%clk 0:00:55.4]} 41... c3 {[%clk 0:01:42.8]}
42. Rf7 {[%clk 0:00:55.9]} 42... Ra4+ {[%clk 0:01:32.4]} 43. Kg3 {[%clk
0:00:50.7]} 43... c2 {[%clk 0:01:30.2]} 44. Rxg7 {[%clk 0:00:46.4]} 44... c1=Q
{[%clk 0:01:28.7]} 0-1

[Event "Late-Titled-Tuesday-Blitz-August-29-2023"]
[Site "Chess.com"]
[Date "2023.08.29"]
[Round "10"]
[White "Sajkochess"]
[Black "Cipy77"]
[Result "1-0"]
[WhiteElo "2434"]
[BlackElo "2542"]
[TimeControl "180+1"]
[EndTime "15:51:37 PDT"]
[Termination "Sajkochess won by checkmate"]

1. e4 {[%clk 0:03:00.9]} 1... c5 {[%clk 0:02:57.6]} 2. Nf3 {[%clk 0:03:00.8]}
2... Nc6 {[%clk 0:02:57.4]} 3. d4 {[%clk 0:03:01.3]} 3... cxd4 {[%clk
0:02:57.5]} 4. Nxd4 {[%clk 0:03:02.2]} 4... Nf6 {[%clk 0:02:57.6]} 5. Nc3 {[%clk
0:03:02]} 5... d6 {[%clk 0:02:57.8]} 6. g3 {[%clk 0:03:01.4]} 6... e6 {[%clk
0:02:52.8]} 7. Bg2 {[%clk 0:03:00.5]} 7... Ke7 {[%clk 0:02:53.1]} 8. O-O {[%clk
0:02:37.3]} 8... Bd7 {[%clk 0:02:43.7]} 9. Re1 {[%clk 0:01:30.6]} 9... g6 {[%clk
0:02:36.3]} 10. Ndb5 {[%clk 0:01:01.4]} 10... Qb8 {[%clk 0:02:30]} 11. Nd5+
{[%clk 0:00:48.9]} 11... exd5 {[%clk 0:02:24]} 12. exd5+ {[%clk 0:00:48.5]}
12... Ne5 {[%clk 0:02:14.6]} 13. Rxe5+ {[%clk 0:00:48.2]} 13... dxe5 {[%clk
0:02:14.6]} 14. d6+ {[%clk 0:00:48.7]} 14... Kd8 {[%clk 0:02:11.4]} 15. Bg5
{[%clk 0:00:43.9]} 15... Bxb5 {[%clk 0:02:04.4]} 16. Bxf6+ {[%clk 0:00:42.8]}
16... Ke8 {[%clk 0:02:04.9]} 17. Qd5 {[%clk 0:00:31.2]} 17... Bd7 {[%clk
0:01:51.2]} 18. Qxe5+ {[%clk 0:00:29.8]} 18... Be6 {[%clk 0:01:51.5]} 19. d7+
{[%clk 0:00:25.4]} 19... Kxd7 {[%clk 0:01:50.8]} 20. Qb5+ {[%clk 0:00:19.3]}
20... Kc8 {[%clk 0:01:46.3]} 21. Bxh8 {[%clk 0:00:13.5]} 21... a6 {[%clk
0:01:42.1]} 22. Qe8+ {[%clk 0:00:11.8]} 22... Kc7 {[%clk 0:01:39.2]} 23. Be5+
{[%clk 0:00:11.7]} 23... Bd6 {[%clk 0:01:39.8]} 24. Qe7+ {[%clk 0:00:12]} 24...
Kb6 {[%clk 0:01:30.5]} 25. Bxd6 {[%clk 0:00:09]} 25... Qc8 {[%clk 0:01:31.1]}
26. c3 {[%clk 0:00:03.7]} 26... a5 {[%clk 0:01:26.6]} 27. Bc5+ {[%clk
0:00:02.4]} 27... Ka6 {[%clk 0:01:25.3]} 28. Bf1+ {[%clk 0:00:02.4]} 28... b5
{[%clk 0:01:24.6]} 29. Qd6+ {[%clk 0:00:02.7]} 29... Kb7 {[%clk 0:01:25]} 30.
Qb6# {[%clk 0:00:02.9]} 1-0

[Event "Late-Titled-Tuesday-Blitz-August-29-2023"]
[Site "Chess.com"]
[Date "2023.08.29"]
[Round "10"]
[White "Semetey"]
[Black "Jaka_Brilej"]
[Result "1-0"]
[WhiteElo "2596"]
[BlackElo "2501"]
[TimeControl "180+1"]
[EndTime "15:51:40 PDT"]
[Termination "Semetey won by checkmate"]

1. e4 {[%clk 0:02:53.7]} 1... e6 {[%clk 0:02:59.6]} 2. d4 {[%clk 0:02:52.5]}
2... d5 {[%clk 0:02:59.5]} 3. Nc3 {[%clk 0:02:52.8]} 3... Nf6 {[%clk 0:02:59.5]}
4. e5 {[%clk 0:02:52.9]} 4... Nfd7 {[%clk 0:02:59.7]} 5. f4 {[%clk 0:02:53.5]}
5... c5 {[%clk 0:02:59.6]} 6. Nf3 {[%clk 0:02:54.1]} 6... Nc6 {[%clk 0:03:00]}
7. Be3 {[%clk 0:02:53.6]} 7... cxd4 {[%clk 0:03:00.3]} 8. Nxd4 {[%clk
0:02:54.5]} 8... Qb6 {[%clk 0:02:59.8]} 9. Qd2 {[%clk 0:02:52.5]} 9... Qxb2
{[%clk 0:02:58.3]} 10. Rb1 {[%clk 0:02:52.8]} 10... Qa3 {[%clk 0:02:57.9]} 11.
Bb5 {[%clk 0:02:42.8]} 11... Nxd4 {[%clk 0:02:57.5]} 12. Bxd4 {[%clk 0:02:42.2]}
12... a6 {[%clk 0:02:58]} 13. Bxd7+ {[%clk 0:02:39.4]} 13... Bxd7 {[%clk
0:02:58.2]} 14. Rxb7 {[%clk 0:02:39.4]} 14... Rc8 {[%clk 0:02:57.2]} 15. Rb3
{[%clk 0:02:34.6]} 15... Qa5 {[%clk 0:02:49.4]} 16. O-O {[%clk 0:02:34.3]} 16...
Bc5 {[%clk 0:02:46.2]} 17. Kh1 {[%clk 0:02:33.3]} 17... O-O {[%clk 0:02:43.9]}
18. f5 {[%clk 0:02:31.3]} 18... Bxd4 {[%clk 0:02:38.3]} 19. Qxd4 {[%clk
0:02:30.8]} 19... Rc4 {[%clk 0:02:37.3]} 20. Qa7 {[%clk 0:02:16.6]} 20... Bc8
{[%clk 0:01:50.7]} 21. fxe6 {[%clk 0:01:55.1]} 21... Bxe6 {[%clk 0:01:38.7]} 22.
Ne2 {[%clk 0:01:40.3]} 22... Qxa2 {[%clk 0:01:27.1]} 23. Nd4 {[%clk 0:01:39.7]}
23... Rcc8 {[%clk 0:01:08.9]} 24. Rg3 {[%clk 0:01:32.7]} 24... Qc4 {[%clk
0:01:05.4]} 25. Rf4 {[%clk 0:01:15.2]} 25... Ra8 {[%clk 0:00:45.7]} 26. Qe7
{[%clk 0:01:11.5]} 26... Rab8 {[%clk 0:00:41.1]} 27. Rxg7+ {[%clk 0:01:00.9]}
27... Kxg7 {[%clk 0:00:38.3]} 28. Nxe6+ {[%clk 0:00:59.3]} 28... Kg8 {[%clk
0:00:27.5]} 29. Qg5+ {[%clk 0:00:59]} 29... Kh8 {[%clk 0:00:28]} 30. Qg7# {[%clk
0:00:59.9]} 1-0